[Event "FIDE WYCC Girls U18 2023"]
[Site "Montesilvano"]
[Date "2023.11.16"]
[Round "4.17"]
[White "Largo, Franchesca"]
[Black "Skarbarchuk, Tetyana"]
[Result "1-0"]
[ECO "C02"]
[WhiteElo "1658"]
[BlackElo "2010"]
[Annotator "NA RC"]
[PlyCount "61"]
[EventDate "2023.11.13"]
[EventType "swiss"]
[EventCountry "ITA"]
[SourceTitle "playchess.com"]
[Source "ChessBase"]
[SourceQuality "1"]
[TimeControl "40/5400+30:1800+30"]

1. e4 {[%emt 0:00:13]} e6 {[%emt 0:00:08]} 2. d4 {[%emt 0:00:27]} d5 {[%emt 0:00:07]} 3. e5 {[%emt 0:00:36]} c5 {[%emt 0:00:11]} 4. c3 {[%emt 0:00:17]} Nc6 {[%emt 0:00:23]} 5. Nf3 {[%emt 0:00:06]} Qb6 {[%emt 0:00:20]} 6. Bd3 {[%emt 0:00:45]} cxd4 {[%emt 0:00:21]} 7. O-O {[%emt 0:00:15]} Bd7 {[%emt 0:01:46]} 8. Nbd2 {[%emt 0:08:41]} dxc3 {[%emt 0:10:41]} 9. bxc3 {[%emt 0:00:06]} Rc8 {[%emt 0:11:45]} 10. Re1 {[%emt 0:02:14]} h6 {[%emt 0:08:17]} 11. Qe2 {[%emt 0:26:16]} Na5 {[%emt 0:12:46]} 12. Rb1 {[%emt 0:09:36]} Qc7 {[%emt 0:03:16]} 13. Nd4 {[%emt 0:20:29]} a6 {[%emt 0:18:30]} 14. N2f3 {[%emt 0:04:47]} Ne7 {[%emt 0:07:40]} 15. Ba3 {[%emt 0:14:18]} Nec6 {[%emt 0:00:44]} 16. Nxc6 {[%emt 0:01:01]} Qxc6 17. Bxf8 {[%emt 0:02:56]} Kxf8 {[%emt 0:13:06]} 18. Rec1 {[%emt 0:00:16]} Qc5 {[%emt 0:04:28]} 19. h4 {[%emt 0:02:21]} Ke7 {[%emt 0:03:06]} 20. Rb4 {[%emt 0:00:45]} b5 {[%emt 0:01:45]} 21. Rg4 {[%emt 0:00:13]} g6 {[%emt 0:00:19]} 22. Nd4 {[%emt 0:00:09]} Qa3 {[%emt 0:00:49]} 23. Qd2 {[%emt 0:00:49]} b4 {[%emt 0:00:15]} 24. Qf4 {[%emt 0:00:44]} Kd8 {[%emt 0:00:59]} 25. Bxa6 {[%emt 0:00:31]} Rc5 {[%emt 0:00:43]} 26. Rb1 {[%emt 0:00:52]} Kc7 {[%emt 0:00:23]} 27. Qxf7 {[%emt 0:00:42]} Re8 {[%emt 0:00:38]} 28. Nb5+ {[%emt 0:00:20]} Rxb5 {[%emt 0:00:04]} 29. Bxb5 {[%emt 0:00:05]} Nc6 {[%emt 0:00:15]} 30. Bxc6 {[%emt 0:00:16]} Kxc6 {[%emt 0:00:04]} 31. Rgxb4 {[%emt 0:00:13]} 1-0

[Event "FIDE WYCC Girls U18 2023"]
[Site "Montesilvano"]
[Date "2023.11.16"]
[Round "4.18"]
[White "Oviedo Acosta, Paula"]
[Black "Obada, Ema"]
[Result "1-0"]
[ECO "B13"]
[WhiteElo "1639"]
[BlackElo "2023"]
[Annotator "NA RC"]
[PlyCount "75"]
[EventDate "2023.11.13"]
[EventType "swiss"]
[EventCountry "ITA"]
[SourceTitle "playchess.com"]
[Source "ChessBase"]
[SourceQuality "1"]
[TimeControl "40/5400+30:1800+30"]

1. e4 {[%emt 0:00:02]} c6 {[%emt 0:00:09]} 2. d4 {[%emt 0:00:08]} d5 {[%emt 0:00:05]} 3. exd5 {[%emt 0:00:18]} cxd5 {[%emt 0:00:06]} 4. Bd3 {[%emt 0:00:12]} Nc6 {[%emt 0:00:09]} 5. c3 {[%emt 0:00:07]} Nf6 {[%emt 0:00:07]} 6. Bf4 {[%emt 0:00:38]} Bg4 {[%emt 0:00:10]} 7. Qb3 {[%emt 0:00:38]} Qd7 {[%emt 0:00:11]} 8. Nd2 {[%emt 0:00:54]} e6 {[%emt 0:00:16]} 9. h3 {[%emt 0:00:31]} Bh5 {[%emt 0:01:18]} 10. Ngf3 {[%emt 0:00:51]} Bd6 {[%emt 0:04:35]} 11. Bxd6 {[%emt 0:10:59]} Qxd6 {[%emt 0:00:16]} 12. O-O {[%emt 0:00:09]} O-O {[%emt 0:00:21]} 13. Rfe1 {[%emt 0:01:17]} Qc7 {[%emt 0:14:19]} 14. Qc2 {[%emt 0:03:57]} Rfc8 {[%emt 0:11:33]} 15. Rac1 {[%emt 0:01:23]} Bg6 {[%emt 0:01:35]} 16. Bxg6 {[%emt 0:04:47]} hxg6 {[%emt 0:00:06]} 17. Qd3 {[%emt 0:01:28]} Nd7 {[%emt 0:08:39]} 18. h4 {[%emt 0:05:10]} Qf4 {[%emt 0:07:23]} 19. g3 {[%emt 0:04:11]} Qf5 {[%emt 0:01:54]} 20. Qe2 {[%emt 0:05:18]} Rab8 {[%emt 0:02:05]} 21. Nf1 {[%emt 0:01:00]} b5 {[%emt 0:10:31]} 22. Ne3 {[%emt 0:01:22]} Qf6 {[%emt 0:00:20]} 23. Kg2 {[%emt 0:02:37]} b4 {[%emt 0:08:32]} 24. Rh1 {[%emt 0:02:23]} bxc3 {[%emt 0:02:00]} 25. bxc3 {[%emt 0:00:10]} Qe7 {[%emt 0:08:57]} 26. h5 {[%emt 0:08:36]} gxh5 {[%emt 0:02:14]} 27. Rxh5 {[%emt 0:00:44]} g6 {[%emt 0:01:05]} 28. Rh4 {[%emt 0:02:59]} Kg7 {[%emt 0:02:07]} 29. Re1 {[%emt 0:05:26]} Nf6 {[%emt 0:03:48]} 30. Ne5 {[%emt 0:04:08]} Nxe5 {[%emt 0:02:51]} 31. dxe5 {[%emt 0:00:22]} Ne4 {[%emt 0:00:55]} 32. c4 {[%emt 0:02:03]} Qa3 {[%emt 0:02:48]} 33. Qf3 {[%emt 0:04:44]} Qe7 {[%emt 0:02:06]} 34. cxd5 {[%emt 0:02:12]} Ng5 {[%emt 0:00:41]} 35. Qf4 {[%emt 0:01:30]} a5 {[%emt 0:01:54]} 36. Ng4 {[%emt 0:07:23]} Rh8 {[%emt 0:00:59]} 37. Nf6 {[%emt 0:02:05]} Qb4 {[%emt 0:00:39]} 38. Ne8+ {[%emt 0:01:27]} 1-0

[Event "FIDE WYCC Girls U18 2023"]
[Site "Montesilvano"]
[Date "2023.11.16"]
[Round "4.19"]
[White "Groeschel, Karoline"]
[Black "Alexandrova, Angelina"]
[Result "1-0"]
[ECO "C18"]
[WhiteElo "1924"]
[BlackElo "1814"]
[Annotator "RC"]
[PlyCount "119"]
[EventDate "2023.11.13"]
[EventType "swiss"]
[EventCountry "ITA"]
[SourceTitle "playchess.com"]
[Source "ChessBase"]
[SourceQuality "1"]
[TimeControl "40/5400+30:1800+30"]

1. e4 {[%emt 0:00:02]} e6 {[%emt 0:00:03]} 2. d4 {[%emt 0:00:05]} d5 {[%emt 0:00:03]} 3. Nc3 {[%emt 0:00:05]} Bb4 {[%emt 0:00:07]} 4. e5 {[%emt 0:00:08]} c5 {[%emt 0:00:05]} 5. a3 {[%emt 0:00:03]} Bxc3+ {[%emt 0:00:08]} 6. bxc3 {[%emt 0:00:04]} Ne7 {[%emt 0:00:08]} 7. Qg4 {[%emt 0:00:09]} cxd4 {[%emt 0:00:11]} 8. Bd3 {[%emt 0:13:11]} Qc7 {[%emt 0:05:23]} 9. Ne2 {[%emt 0:00:26]} dxc3 {[%emt 0:01:40]} 10. Qxg7 {[%emt 0:00:15]} Rg8 {[%emt 0:00:13]} 11. Qxh7 {[%emt 0:00:05]} Qxe5 {[%emt 0:06:15]} 12. h4 {[%emt 0:00:11]} Nbc6 {[%emt 0:14:50]} 13. Bf4 {[%emt 0:00:30]} Qf6 {[%emt 0:01:11]} 14. Bg5 {[%emt 0:02:11]} Qe5 {[%emt 0:02:37]} 15. f4 {[%emt 0:01:35]} Qe3 {[%emt 0:06:43]} 16. Kf1 {[%emt 0:31:19]} Qc5 {[%emt 0:13:56]} 17. Bf6 {[%emt 0:06:31]} d4 {[%emt 0:08:59]} 18. h5 {[%emt 0:08:34]} Bd7 {[%emt 0:02:25]} 19. h6 {[%emt 0:11:23]} O-O-O {[%emt 0:00:10]} 20. Qe4 {[%emt 0:00:40]} Nd5 {[%emt 0:02:38]} 21. Bxd8 {[%emt 0:02:48]} Ne3+ {[%emt 0:00:12]} 22. Kf2 {[%emt 0:06:01]} f5 {[%emt 0:02:00]} 23. h7 {[%emt 0:02:28]} Rh8 {[%emt 0:00:15]} 24. Qf3 {[%emt 0:01:11]} Kxd8 {[%emt 0:11:19]} 25. Qh5 {[%emt 0:01:02]} Qe7 {[%emt 0:00:56]} 26. Qg5 {[%emt 0:02:04]} Ng4+ {[%emt 0:01:10]} 27. Kg3 {[%emt 0:01:17]} Nf6 {[%emt 0:09:24]} 28. Rh6 {[%emt 0:04:21]} Nxh7 {[%emt 0:00:05]} 29. Qg6 {[%emt 0:01:09]} Be8 {[%emt 0:09:36]} 30. Qxe6 {[%emt 0:01:38]} Qxe6 {[%emt 0:00:06]} 31. Rxe6 {[%emt 0:00:02]} Nf8 {[%emt 0:01:12]} 32. Rd6+ {[%emt 0:01:05]} Kc7 {[%emt 0:00:59]} 33. Rd5 {[%emt 0:00:59]} Bf7 {[%emt 0:00:54]} 34. Rxf5 {[%emt 0:00:23]} Bg6 {[%emt 0:00:06]} 35. Rxf8 {[%emt 0:00:41]} Bxd3 {[%emt 0:01:01]} 36. Rf7+ {[%emt 0:00:59]} Kd6 {[%emt 0:00:14]} 37. cxd3 {[%emt 0:00:09]} Re8 {[%emt 0:00:13]} 38. Kf3 {[%emt 0:00:23]} Re3+ {[%emt 0:00:08]} 39. Kf2 {[%emt 0:00:27]} Rxd3 {[%emt 0:00:03]} 40. Rf5 {[%emt 0:00:00]} Ne7 {[%emt 0:00:00]} 41. Rh5 {[%emt 0:05:19]} Nd5 {[%emt 0:01:59]} 42. Ra2 {[%emt 0:11:00]} Ne3 {[%emt 0:02:59]} 43. Nxd4 {[%emt 0:07:54]} Ng4+ {[%emt 0:03:44]} 44. Ke2 {[%emt 0:01:16]} Rxd4 {[%emt 0:00:11]} 45. g3 {[%emt 0:00:44]} a6 {[%emt 0:03:07]} 46. Rc2 {[%emt 0:00:40]} Rc4 {[%emt 0:00:11]} 47. Rg5 {[%emt 0:00:40]} Nf6 {[%emt 0:00:57]} 48. Kd3 {[%emt 0:00:45]} Ra4 {[%emt 0:01:03]} 49. Rxc3 {[%emt 0:00:32]} Ne4 {[%emt 0:00:52]} 50. Rc4 {[%emt 0:06:18]} Nf2+ {[%emt 0:00:21]} 51. Kd4 {[%emt 0:00:04]} Rxa3 {[%emt 0:00:17]} 52. Rg6+ {[%emt 0:00:18]} Kd7 {[%emt 0:00:32]} 53. Rc2 {[%emt 0:03:17]} Rd3+ {[%emt 0:02:50]} 54. Kc4 {[%emt 0:00:39]} b5+ {[%emt 0:00:18]} 55. Kc5 {[%emt 0:00:41]} Ne4+ {[%emt 0:00:43]} 56. Kb6 {[%emt 0:00:10]} Rxg3 {[%emt 0:00:48]} 57. Rc7+ {[%emt 0:00:23]} Kd8 {[%emt 0:00:18]} 58. Rh6 {[%emt 0:00:34]} Rg8 {[%emt 0:00:30]} 59. Ra7 {[%emt 0:00:14]} Rf8 {[%emt 0:01:53]} 60. Ra8+ {[%emt 0:00:07]} 1-0

[Event "FIDE WYCC Girls U18 2023"]
[Site "Montesilvano"]
[Date "2023.11.16"]
[Round "4.20"]
[White "Changkachith, Alyssa"]
[Black "Menon, Gauri"]
[Result "0-1"]
[ECO "C54"]
[WhiteElo "1147"]
[BlackElo "1821"]
[Annotator "NA RC"]
[PlyCount "84"]
[EventDate "2023.11.13"]
[EventType "swiss"]
[EventCountry "ITA"]
[SourceTitle "playchess.com"]
[Source "ChessBase"]
[SourceQuality "1"]
[TimeControl "40/5400+30:1800+30"]

1. e4 {[%emt 0:00:03]} e5 {[%emt 0:00:04]} 2. Nf3 {[%emt 0:00:09]} Nc6 {[%emt 0:00:05]} 3. d4 {[%emt 0:00:20]} exd4 {[%emt 0:00:05]} 4. Bc4 {[%emt 0:00:17]} Bc5 {[%emt 0:00:08]} 5. c3 {[%emt 0:01:51]} Nf6 {[%emt 0:00:15]} 6. e5 {[%emt 0:01:55]} d5 {[%emt 0:00:19]} 7. Bb5 {[%emt 0:00:57]} Ne4 {[%emt 0:00:32]} 8. cxd4 {[%emt 0:00:42]} Bb6 {[%emt 0:00:54]} 9. Bxc6+ {[%emt 0:02:57]} bxc6 {[%emt 0:00:12]} 10. O-O {[%emt 0:00:48]} Bg4 {[%emt 0:03:10]} 11. Be3 {[%emt 0:04:17]} c5 {[%emt 0:09:39]} 12. dxc5 {[%emt 0:19:04]} Nxc5 {[%emt 0:03:48]} 13. h3 {[%emt 0:21:34]} Bxf3 {[%emt 0:06:48]} 14. Qxf3 {[%emt 0:00:13]} O-O {[%emt 0:04:34]} 15. Rd1 {[%emt 0:01:49]} c6 {[%emt 0:00:23]} 16. Nc3 {[%emt 0:01:17]} Ne6 {[%emt 0:05:38]} 17. Ne2 {[%emt 0:09:45]} Qb8 {[%emt 0:07:35]} 18. Qg3 {[%emt 0:10:07]} Bc7 {[%emt 0:02:32]} 19. f4 {[%emt 0:02:56]} Qxb2 {[%emt 0:04:08]} 20. Nd4 {[%emt 0:02:31]} Nxd4 {[%emt 0:03:20]} 21. Bxd4 {[%emt 0:00:25]} Bb6 {[%emt 0:00:48]} 22. Bxb6 {[%emt 0:00:57]} Qxb6+ {[%emt 0:06:19]} 23. Kh1 {[%emt 0:00:26]} Rad8 {[%emt 0:04:24]} 24. f5 {[%emt 0:02:02]} Kh8 {[%emt 0:03:05]} 25. Rab1 {[%emt 0:03:13]} Qc7 {[%emt 0:00:48]} 26. Qc3 {[%emt 0:01:29]} Rfe8 {[%emt 0:04:29]} 27. Re1 {[%emt 0:02:20]} d4 {[%emt 0:01:09]} 28. Qg3 {[%emt 0:01:08]} f6 {[%emt 0:00:53]} 29. Re4 {[%emt 0:04:03]} Rxe5 {[%emt 0:03:56]} 30. Rbe1 {[%emt 0:00:54]} Rxe4 {[%emt 0:02:12]} 31. Qxc7 {[%emt 0:00:20]} Rxe1+ {[%emt 0:00:06]} 32. Kh2 {[%emt 0:00:02]} Ree8 {[%emt 0:00:08]} 33. Qa5 {[%emt 0:02:54]} d3 {[%emt 0:00:09]} 34. Qd2 {[%emt 0:00:24]} c5 {[%emt 0:00:07]} 35. Kg1 {[%emt 0:02:41]} c4 {[%emt 0:00:08]} 36. g4 {[%emt 0:00:08]} c3 {[%emt 0:00:08]} 37. Qxc3 {[%emt 0:00:58]} d2 {[%emt 0:00:08]} 38. a4 {[%emt 0:00:53]} d1=Q+ {[%emt 0:00:17]} 39. Kh2 {[%emt 0:00:13]} Rd3 {[%emt 0:00:42]} 40. Qb2 {[%emt 0:00:00]} Re2+ {[%emt 0:00:00]} 41. Qxe2 {[%emt 0:00:50]} Qxe2+ {[%emt 0:01:37]} 42. Kh1 {[%emt 0:00:15]} Rd1# {[%emt 0:00:03]} 0-1

[Event "FIDE WYCC Girls U18 2023"]
[Site "Montesilvano"]
[Date "2023.11.16"]
[Round "4.21"]
[White "Hyatt, Jessica"]
[Black "Keerti Shree Reddy"]
[Result "1-0"]
[ECO "B38"]
[WhiteElo "1818"]
[BlackElo "1741"]
[Annotator "NA RC"]
[PlyCount "63"]
[EventDate "2023.11.13"]
[EventType "swiss"]
[EventCountry "ITA"]
[SourceTitle "playchess.com"]
[Source "ChessBase"]
[SourceQuality "1"]
[TimeControl "40/5400+30:1800+30"]

1. e4 {[%emt 0:04:01]} c5 {[%emt 0:00:50]} 2. Nf3 {[%emt 0:00:10]} g6 {[%emt 0:00:31]} 3. d4 {[%emt 0:00:08]} cxd4 {[%emt 0:00:06]} 4. Nxd4 {[%emt 0:00:05]} Bg7 {[%emt 0:00:07]} 5. c4 {[%emt 0:00:06]} Nc6 {[%emt 0:00:06]} 6. Be3 {[%emt 0:00:07]} Nf6 {[%emt 0:00:07]} 7. Nc3 {[%emt 0:00:05]} d6 {[%emt 0:00:06]} 8. Be2 {[%emt 0:00:07]} O-O {[%emt 0:00:08]} 9. f3 {[%emt 0:00:04]} Nxd4 {[%emt 0:00:06]} 10. Bxd4 {[%emt 0:00:03]} Bd7 {[%emt 0:00:07]} 11. Qd2 {[%emt 0:02:53]} a5 {[%emt 0:00:10]} 12. Rc1 {[%emt 0:02:03]} Bc6 {[%emt 0:01:16]} 13. O-O {[%emt 0:02:27]} Nd7 {[%emt 0:00:11]} 14. Rfd1 {[%emt 0:02:47]} Bxd4+ {[%emt 0:02:09]} 15. Qxd4 {[%emt 0:00:10]} f6 {[%emt 0:03:22]} 16. f4 {[%emt 0:08:23]} Nc5 {[%emt 0:09:05]} 17. e5 {[%emt 0:03:50]} fxe5 {[%emt 0:06:44]} 18. fxe5 {[%emt 0:00:08]} Ne6 {[%emt 0:03:12]} 19. Qe3 {[%emt 0:02:40]} Nf4 {[%emt 0:04:07]} 20. Bf1 {[%emt 0:06:09]} Qd7 {[%emt 0:10:37]} 21. Nd5 {[%emt 0:10:00]} Bxd5 {[%emt 0:05:25]} 22. cxd5 {[%emt 0:00:09]} Qg4 {[%emt 0:08:03]} 23. h3 {[%emt 0:07:11]} Qg5 {[%emt 0:05:02]} 24. Re1 {[%emt 0:14:44]} h5 {[%emt 0:11:54]} 25. exd6 {[%emt 0:05:09]} exd6 {[%emt 0:04:32]} 26. Rc7 {[%emt 0:00:56]} Rac8 27. Rxc8 Rxc8 {[%emt 0:01:17]} 28. g3 {[%emt 0:00:39]} Rf8 {[%emt 0:06:38]} 29. Bg2 {[%emt 0:00:44]} h4 {[%emt 0:04:14]} 30. gxf4 {[%emt 0:00:22]} Qxf4 {[%emt 0:00:00]} 31. Qxf4 {[%emt 0:00:07]} Rxf4 32. Re4 1-0

[Event "FIDE WYCC Girls U18 2023"]
[Site "Montesilvano"]
[Date "2023.11.16"]
[Round "4.22"]
[White "Barwinska, Ewa"]
[Black "Gonzalez Romo, Greshya Jocelyn"]
[Result "1-0"]
[ECO "B40"]
[WhiteElo "1974"]
[BlackElo "1494"]
[Annotator "NA RC"]
[PlyCount "81"]
[EventDate "2023.11.13"]
[EventType "swiss"]
[EventCountry "ITA"]
[SourceTitle "playchess.com"]
[Source "ChessBase"]
[SourceQuality "1"]
[TimeControl "40/5400+30:1800+30"]

1. e4 {[%emt 0:00:03]} c5 {[%emt 0:00:11]} 2. Nf3 {[%emt 0:00:07]} e6 {[%emt 0:00:19]} 3. d3 {[%emt 0:00:38]} Nc6 {[%emt 0:01:30]} 4. g3 {[%emt 0:00:38]} g6 {[%emt 0:02:18]} 5. c3 {[%emt 0:05:36]} e5 {[%emt 0:10:23]} 6. d4 {[%emt 0:07:51]} exd4 {[%emt 0:05:14]} 7. cxd4 {[%emt 0:00:07]} Bg7 {[%emt 0:04:46]} 8. d5 {[%emt 0:07:50]} Nd4 {[%emt 0:06:53]} 9. Nxd4 {[%emt 0:07:51]} Bxd4 {[%emt 0:00:10]} 10. Qc2 {[%emt 0:02:26]} d6 {[%emt 0:07:15]} 11. Bd2 {[%emt 0:01:41]} f5 {[%emt 0:09:29]} 12. Bc3 {[%emt 0:04:04]} Qf6 {[%emt 0:03:15]} 13. Bb5+ {[%emt 0:10:29]} Kf7 {[%emt 0:05:21]} 14. Nd2 {[%emt 0:10:11]} Ne7 {[%emt 0:07:06]} 15. O-O {[%emt 0:03:02]} a6 {[%emt 0:03:55]} 16. Bd3 {[%emt 0:01:55]} Bxc3 {[%emt 0:02:27]} 17. bxc3 {[%emt 0:02:25]} b5 {[%emt 0:01:32]} 18. c4 {[%emt 0:04:03]} Bd7 {[%emt 0:02:57]} 19. Rfe1 {[%emt 0:05:26]} Kg7 {[%emt 0:05:17]} 20. exf5 {[%emt 0:06:19]} Bxf5 {[%emt 0:02:43]} 21. Ne4 {[%emt 0:05:57]} Bxe4 {[%emt 0:00:34]} 22. Bxe4 {[%emt 0:00:08]} Rhf8 {[%emt 0:02:13]} 23. Rab1 {[%emt 0:01:14]} b4 {[%emt 0:00:51]} 24. Rb3 {[%emt 0:01:05]} Qg5 {[%emt 0:04:30]} 25. Rbe3 {[%emt 0:01:25]} Rf7 {[%emt 0:02:23]} 26. Bd3 {[%emt 0:01:15]} Nf5 {[%emt 0:02:43]} 27. Bxf5 {[%emt 0:00:58]} Qxf5 {[%emt 0:00:02]} 28. Qe2 {[%emt 0:02:31]} Raf8 {[%emt 0:01:13]} 29. f4 {[%emt 0:00:15]} Rf6 {[%emt 0:01:18]} 30. Qb2 {[%emt 0:01:26]} Kh6 {[%emt 0:00:46]} 31. Qd2 {[%emt 0:02:14]} a5 {[%emt 0:01:33]} 32. Qd1 {[%emt 0:02:08]} g5 {[%emt 0:01:18]} 33. fxg5+ {[%emt 0:00:11]} Qxg5 {[%emt 0:00:04]} 34. Re4 {[%emt 0:00:26]} Qf5 {[%emt 0:01:21]} 35. Rf4 {[%emt 0:00:39]} Qd7 {[%emt 0:00:25]} 36. Re6 {[%emt 0:01:34]} Rxe6 {[%emt 0:01:24]} 37. dxe6 {[%emt 0:00:05]} Qe7 {[%emt 0:00:52]} 38. Rg4 {[%emt 0:01:23]} Qf6 {[%emt 0:02:13]} 39. Qd2+ {[%emt 0:00:13]} Kh5 {[%emt 0:00:12]} 40. Rh4+ {[%emt 0:00:00]} Kg6 {[%emt 0:00:00]} 41. Rh6+ {[%emt 0:01:25]} 1-0

[Event "FIDE WYCC Girls U18 2023"]
[Site "Montesilvano"]
[Date "2023.11.16"]
[Round "4.23"]
[White "Zubova, Darja"]
[Black "Hakobyan, Astghik"]
[Result "0-1"]
[ECO "C67"]
[WhiteElo "1582"]
[BlackElo "2073"]
[Annotator "NA RC"]
[PlyCount "72"]
[EventDate "2023.11.13"]
[EventType "swiss"]
[EventCountry "ITA"]
[SourceTitle "playchess.com"]
[Source "ChessBase"]
[SourceQuality "1"]
[TimeControl "40/5400+30:1800+30"]

1. e4 {[%emt 0:00:04]} e5 {[%emt 0:00:13]} 2. Nf3 {[%emt 0:00:16]} Nc6 {[%emt 0:00:04]} 3. Bb5 {[%emt 0:00:21]} Nf6 {[%emt 0:00:10]} 4. O-O {[%emt 0:00:18]} Nxe4 {[%emt 0:00:07]} 5. Re1 {[%emt 0:00:16]} Nd6 {[%emt 0:00:07]} 6. a4 {[%emt 0:00:18]} Be7 {[%emt 0:06:34]} 7. Nc3 {[%emt 0:00:27]} a6 {[%emt 0:15:07]} 8. Bf1 {[%emt 0:00:46]} e4 {[%emt 0:03:39]} 9. Nxe4 {[%emt 0:02:56]} Nxe4 {[%emt 0:00:35]} 10. Rxe4 {[%emt 0:00:07]} d5 {[%emt 0:00:14]} 11. Re1 {[%emt 0:00:12]} O-O {[%emt 0:02:06]} 12. d4 {[%emt 0:00:35]} Bg4 {[%emt 0:01:52]} 13. c3 {[%emt 0:01:38]} Qd6 {[%emt 0:10:47]} 14. Bd3 {[%emt 0:05:00]} Rae8 {[%emt 0:04:37]} 15. h3 {[%emt 0:03:58]} Bh5 {[%emt 0:03:00]} 16. a5 {[%emt 0:05:24]} Bd8 {[%emt 0:08:01]} 17. Be3 {[%emt 0:18:32]} Qf6 {[%emt 0:08:25]} 18. g4 {[%emt 0:13:23]} Bg6 {[%emt 0:00:08]} 19. g5 {[%emt 0:01:32]} Qe6 {[%emt 0:02:44]} 20. Kg2 {[%emt 0:04:55]} Qd7 {[%emt 0:08:33]} 21. Rh1 {[%emt 0:10:42]} Be4 {[%emt 0:01:49]} 22. Bxe4 {[%emt 0:01:48]} dxe4 {[%emt 0:01:54]} 23. Nd2 {[%emt 0:01:44]} Ne7 {[%emt 0:04:30]} 24. h4 {[%emt 0:09:10]} Nd5 {[%emt 0:03:13]} 25. Rh3 {[%emt 0:03:59]} f5 {[%emt 0:01:21]} 26. gxf6 {[%emt 0:00:50]} Rxf6 {[%emt 0:00:59]} 27. h5 {[%emt 0:02:58]} Nf4+ {[%emt 0:03:29]} 28. Bxf4 {[%emt 0:00:20]} Rxf4 {[%emt 0:00:01]} 29. Qe2 {[%emt 0:04:30]} Bh4 {[%emt 0:01:10]} 30. Rf1 {[%emt 0:03:00]} Qf5 {[%emt 0:02:41]} 31. Qc4+ {[%emt 0:00:48]} Kh8 {[%emt 0:00:49]} 32. f3 {[%emt 0:00:27]} e3 {[%emt 0:03:16]} 33. Ne4 {[%emt 0:00:12]} Rexe4 {[%emt 0:00:53]} 34. fxe4 {[%emt 0:00:22]} Qg4+ {[%emt 0:01:17]} 35. Kh2 {[%emt 0:00:42]} e2 {[%emt 0:00:04]} 36. Qxc7 {[%emt 0:01:29]} exf1=N+ {[%emt 0:00:32]} 0-1

[Event "FIDE WYCC Girls U18 2023"]
[Site "Montesilvano"]
[Date "2023.11.16"]
[Round "4.24"]
[White "Follana Albelda, Lucia"]
[Black "Ajradinoska, Indzi"]
[Result "1-0"]
[ECO "C11"]
[WhiteElo "1946"]
[BlackElo "1594"]
[Annotator "NA RC"]
[PlyCount "41"]
[EventDate "2023.11.13"]
[EventType "swiss"]
[EventCountry "ITA"]
[SourceTitle "playchess.com"]
[Source "ChessBase"]
[SourceQuality "1"]
[TimeControl "40/5400+30:1800+30"]

1. e4 {[%emt 0:00:04]} e6 {[%emt 0:00:07]} 2. d4 {[%emt 0:00:12]} d5 {[%emt 0:00:05]} 3. Nc3 {[%emt 0:00:05]} Nf6 {[%emt 0:00:08]} 4. Bg5 {[%emt 0:00:06]} dxe4 {[%emt 0:00:50]} 5. Nxe4 {[%emt 0:00:09]} Be7 {[%emt 0:00:05]} 6. Bxf6 {[%emt 0:00:09]} gxf6 {[%emt 0:00:49]} 7. Qd3 {[%emt 0:00:08]} b6 {[%emt 0:00:53]} 8. O-O-O {[%emt 0:00:17]} Bb7 {[%emt 0:00:49]} 9. Nc3 {[%emt 0:00:08]} Nd7 {[%emt 0:04:14]} 10. d5 {[%emt 0:03:52]} a6 {[%emt 0:01:19]} 11. dxe6 {[%emt 0:01:47]} fxe6 {[%emt 0:00:08]} 12. Qh3 {[%emt 0:00:43]} f5 {[%emt 0:07:00]} 13. Qh5+ {[%emt 0:03:22]} Kf8 {[%emt 0:00:01]} 14. Nf3 {[%emt 0:02:04]} Bf6 {[%emt 0:04:54]} 15. Bc4 {[%emt 0:04:01]} Qe7 {[%emt 0:04:12]} 16. Rhe1 {[%emt 0:06:20]} Bxc3 {[%emt 0:05:11]} 17. Rxe6 {[%emt 0:03:13]} Bxb2+ {[%emt 0:00:36]} 18. Kxb2 {[%emt 0:01:46]} Qg7+ {[%emt 0:03:28]} 19. Kb1 {[%emt 0:04:00]} Be4 {[%emt 0:01:16]} 20. Rxd7 {[%emt 0:00:41]} Qxd7 {[%emt 0:00:41]} 21. Qh6+ {[%emt 0:00:12]} 1-0